[Event "Smuk Skak GM Tournament 2021"]
[Site "Skanderborg, Denmark"]
[Date "2021.08.14"]
[Round "1.1"]
[White "Janik, Igor"]
[Black "Pedersen, Nicolai Vesterbæk"]
[Result "1-0"]
[TimeControl "90 minutes + 30 minutes at move 40, 30 secs pr move from move 1"]
[WhiteTitle "IM"]
[BlackTitle "IM"]
[WhiteFideId "1159259"]
[BlackFideId "1402340"]
[WhiteElo "2500"]
[BlackElo "2369"]

1. c4 {[%clk 01:30:58]} {[%emt 00:00:02]} e5 {[%clk 01:30:19]} {[%emt
00:00:41]} 2. Nc3 {[%clk 01:31:13]} {[%emt 00:00:14]} Nf6 {[%emt 00:02:26]} 3.
Nf3 {[%clk 01:30:57]} {[%emt 00:00:23]} Nc6 {[%clk 01:28:46]} {[%emt 00:00:30]}
4. g3 {[%clk 01:30:52]} {[%emt 00:00:35]} Bb4 {[%clk 01:21:38]} {[%emt
00:07:38]} 5. Nd5 {[%clk 01:31:06]} {[%emt 00:00:17]} a5 {[%clk 01:12:55]}
{[%emt 00:09:13]} 6. Bg2 {[%clk 01:26:51]} {[%emt 00:04:45]} d6 {[%clk
00:53:43]} {[%emt 00:19:42]} 7. O-O {[%clk 01:24:05]} {[%emt 00:03:16]} O-O
{[%clk 00:38:17]} {[%emt 00:15:56]} 8. e3 {[%clk 01:06:00]} {[%emt 00:18:35]}
Bc5 {[%clk 00:32:15]} {[%emt 00:06:33]} 9. d4 {[%clk 00:57:26]} {[%emt
00:09:04]} Ba7 {[%clk 00:32:23]} {[%emt 00:00:22]} 10. dxe5 {[%clk 00:54:25]}
{[%emt 00:03:32]} Nxe5 {[%clk 00:30:32]} {[%emt 00:02:21]} 11. Qc2 {[%clk
00:45:27]} {[%emt 00:09:28]} c6 {[%clk 00:26:57]} {[%emt 00:04:05]} 12. Nf4
{[%clk 00:44:57]} {[%emt 00:01:00]} Bg4 {[%clk 00:25:33]} {[%emt 00:01:54]} 13.
Nd4 {[%clk 00:39:29]} {[%emt 00:05:59]} Bxd4 {[%clk 00:19:39]} {[%emt
00:06:24]} 14. exd4 {[%clk 00:39:55]} {[%emt 00:00:04]} Nf3+ {[%clk 00:19:49]}
{[%emt 00:00:19]} 15. Bxf3 {[%clk 00:39:31]} {[%emt 00:00:55]} Bxf3 {[%clk
00:20:16]} {[%emt 00:00:03]} 16. Qc3 {[%clk 00:39:19]} {[%emt 00:00:42]} Bg4
{[%clk 00:19:39]} {[%emt 00:01:07]} 17. f3 {[%clk 00:39:27]} {[%emt 00:00:22]}
Bd7 {[%clk 00:18:59]} {[%emt 00:01:10]} 18. b3 {[%clk 00:35:07]} {[%emt
00:04:51]} d5 {[%clk 00:12:31]} {[%emt 00:06:58]} 19. c5 {[%clk 00:33:26]}
{[%emt 00:02:11]} a4 {[%clk 00:10:31]} {[%emt 00:02:29]} 20. Bd2 {[%clk
00:30:26]} {[%emt 00:03:30]} b5 {[%clk 00:05:22]} {[%emt 00:05:36]} 21. Nd3
{[%clk 00:28:23]} {[%emt 00:02:36]} Bf5 {[%clk 00:03:24]} {[%emt 00:02:28]} 22.
Nb4 {[%clk 00:27:27]} {[%emt 00:01:26]} Qd7 {[%clk 00:02:45]} {[%emt 00:01:09]}
23. Bf4 {[%clk 00:18:41]} {[%emt 00:09:16]} h6 {[%clk 00:02:25]} {[%emt
00:00:50]} 24. g4 {[%clk 00:18:10]} {[%emt 00:01:01]} Bh7 {[%clk 00:02:00]}
{[%emt 00:00:54]} 25. Rae1 {[%clk 00:18:03]} {[%emt 00:00:37]} Ne8 {[%clk
00:01:10]} {[%emt 00:01:21]} 26. Qe3 {[%clk 00:09:48]} {[%emt 00:08:44]} axb3
{[%clk 00:00:53]} {[%emt 00:00:48]} 27. axb3 {[%clk 00:10:08]} {[%emt
00:00:11]} g5 {[%clk 00:00:47]} {[%emt 00:00:36]} 28. Bg3 {[%clk 00:09:51]}
{[%emt 00:00:47]} Ng7 {[%clk 00:00:47]} {[%emt 00:00:29]} 29. Qe5 {[%clk
00:09:22]} {[%emt 00:00:59]} Ra3 {[%clk 00:00:32]} {[%emt 00:00:45]} 30. Qf6
{[%clk 00:09:16]} {[%emt 00:00:35]} Ne8 {[%clk 00:00:34]} {[%emt 00:00:29]} 31.
Qxh6 {[%clk 00:09:27]} {[%emt 00:00:19]} f6 {[%clk 00:00:53]} {[%emt 00:00:11]}
32. Re3 {[%clk 00:09:12]} {[%emt 00:00:45]} Ng7 {[%clk 00:01:06]} {[%emt
00:00:17]} 33. Rfe1 {[%clk 00:09:10]} {[%emt 00:00:32]} Rf7 {[%clk 00:00:48]}
{[%emt 00:00:48]} 34. Bd6 {[%clk 00:09:12]} {[%emt 00:00:28]} Ra7 {[%clk
00:00:35]} {[%emt 00:00:43]} 35. Re7 {[%clk 00:08:23]} {[%emt 00:01:19]} Rxe7
{[%clk 00:00:56]} {[%emt 00:00:10]} 36. Rxe7 {[%clk 00:08:45]} {[%emt
00:00:08]} Qxe7 {[%clk 00:00:58]} {[%emt 00:00:27]} 37. Bxe7 {[%clk 00:09:09]}
{[%emt 00:00:06]} Rxe7 {[%clk 00:01:22]} {[%emt 00:00:06]} 38. Qxf6 {[%clk
00:09:24]} {[%emt 00:00:15]} Re2 {[%clk 00:01:41]} {[%emt 00:00:12]} 39. Qd8+
{[%clk 00:09:37]} {[%emt 00:00:17]} Kf7 {[%clk 00:01:59]} {[%emt 00:00:12]} 40.
Nxc6 {[%clk 00:09:59]} {[%emt 00:00:08]} Ne6 {[%clk 00:02:02]} {[%emt
00:00:27]} 41. Ne5+ {[%clk 00:10:16]} {[%emt 00:00:12]} 1-0

[Event "Smuk Skak GM Tournament 2021"]
[Site "Skanderborg, Denmark"]
[Date "2021.08.14"]
[Round "1.2"]
[White "Solodovnichenko, Yuri"]
[Black "Nagy, Gabor"]
[Result "1-0"]
[TimeControl "90 minutes + 30 minutes at move 40, 30 secs pr move from move 1"]
[WhiteTitle "GM"]
[BlackTitle "GM"]
[WhiteFideId "14104369"]
[BlackFideId "737119"]
[WhiteElo "2546"]
[BlackElo "2518"]

1. e4 {[%clk 01:30:54]} {[%emt 00:00:05]} c5 {[%clk 01:30:36]} {[%emt
00:00:24]} 2. Nf3 {[%clk 01:31:07]} {[%emt 00:00:16]} Nc6 {[%clk 01:30:46]}
{[%emt 00:00:21]} 3. d4 {[%clk 01:31:05]} {[%emt 00:00:33]} cxd4 {[%clk
01:31:04]} {[%emt 00:00:11]} 4. Nxd4 {[%clk 01:31:30]} {[%emt 00:00:05]} e5
{[%clk 01:31:05]} {[%emt 00:00:29]} 5. Nb5 {[%clk 01:31:41]} {[%emt 00:00:19]}
d6 {[%clk 01:31:21]} {[%emt 00:00:14]} 6. N1c3 {[%clk 01:32:04]} {[%emt
00:00:07]} a6 {[%clk 01:31:38]} {[%emt 00:00:14]} 7. Na3 {[%clk 01:32:29]}
{[%emt 00:00:05]} Be7 {[%clk 01:31:51]} {[%emt 00:00:16]} 8. Nc4 {[%clk
01:30:50]} {[%emt 00:02:10]} b5 {[%clk 01:31:59]} {[%emt 00:00:22]} 9. Ne3
{[%clk 01:31:12]} {[%emt 00:00:07]} Nf6 {[%clk 01:32:11]} {[%emt 00:00:17]} 10.
Bd3 {[%clk 01:30:40]} {[%emt 00:01:03]} O-O {[%clk 01:29:36]} {[%emt 00:03:05]}
11. O-O {[%clk 01:29:24]} {[%emt 00:01:47]} Rb8 {[%clk 01:23:31]} {[%emt
00:06:35]} 12. a3 {[%clk 01:28:02]} {[%emt 00:01:52]} b4 {[%clk 01:18:31]}
{[%emt 00:05:29]} 13. Ncd5 {[%clk 01:28:15]} {[%emt 00:00:18]} Nxd5 {[%clk
01:16:18]} {[%emt 00:02:43]} 14. exd5 {[%clk 01:21:11]} {[%emt 00:07:34]} bxa3
{[%clk 01:13:35]} {[%emt 00:03:13]} 15. Rxa3 {[%clk 01:20:20]} {[%emt
00:01:21]} Nd4 {[%clk 01:08:48]} {[%emt 00:05:17]} 16. Bxa6 {[%clk 01:18:09]}
{[%emt 00:02:42]} f5 {[%clk 00:56:24]} {[%emt 00:12:53]} 17. Bxc8 {[%clk
01:08:51]} {[%emt 00:09:48]} Qxc8 {[%clk 00:56:47]} {[%emt 00:00:07]} 18. c3
{[%clk 01:08:15]} {[%emt 00:01:06]} Nb5 {[%clk 00:56:59]} {[%emt 00:00:18]} 19.
Ra4 {[%clk 01:08:05]} {[%emt 00:00:41]} f4 {[%clk 00:57:11]} {[%emt 00:00:18]}
20. Nc2 {[%clk 01:06:34]} {[%emt 00:02:00]} Qf5 {[%clk 00:53:47]} {[%emt
00:03:54]} 21. Re1 {[%clk 01:04:35]} {[%emt 00:02:28]} Bh4 {[%clk 00:50:22]}
{[%emt 00:03:56]} 22. Rae4 {[%clk 00:58:13]} {[%emt 00:06:51]} Nc7 {[%clk
00:50:21]} {[%emt 00:00:31]} 23. Nb4 {[%clk 00:53:25]} {[%emt 00:05:18]} Rb5
{[%clk 00:45:56]} {[%emt 00:04:56]} 24. Qe2 {[%clk 00:46:25]} {[%emt 00:07:28]}
Rb7 {[%clk 00:34:57]} {[%emt 00:11:30]} 25. g3 {[%clk 00:32:00]} {[%emt
00:14:56]} Bg5 {[%clk 00:33:05]} {[%emt 00:02:23]} 26. gxf4 {[%clk 00:28:44]}
{[%emt 00:03:46]} exf4 {[%clk 00:32:32]} {[%emt 00:01:02]} 27. f3 {[%clk
00:26:55]} {[%emt 00:02:18]} h6 {[%clk 00:30:05]} {[%emt 00:02:57]} 28. Rd1
{[%clk 00:22:25]} {[%emt 00:05:00]} Kh8 {[%clk 00:26:22]} {[%emt 00:04:14]} 29.
Qg2 {[%clk 00:15:38]} {[%emt 00:07:17]} h5 {[%clk 00:24:16]} {[%emt 00:02:36]}
30. Nc6 {[%clk 00:13:50]} {[%emt 00:02:19]} Bf6 {[%clk 00:18:54]} {[%emt
00:05:52]} 31. Bxf4 {[%clk 00:10:03]} {[%emt 00:04:16]} Nxd5 {[%clk 00:18:20]}
{[%emt 00:01:05]} 32. Bxd6 {[%clk 00:08:59]} {[%emt 00:01:34]} Ra8 {[%clk
00:17:35]} {[%emt 00:01:15]} 33. Ne5 {[%clk 00:07:04]} {[%emt 00:02:25]} Kh7
{[%clk 00:16:45]} {[%emt 00:01:20]} 34. Nc4 {[%clk 00:04:37]} {[%emt 00:02:56]}
Ra2 {[%clk 00:16:31]} {[%emt 00:00:45]} 35. Re2 {[%clk 00:01:48]} {[%emt
00:03:19]} Rd7 {[%clk 00:15:03]} {[%emt 00:01:59]} 36. Red2 {[%clk 00:01:28]}
{[%emt 00:00:50]} Ne7 {[%clk 00:12:09]} {[%emt 00:03:24]} 37. Qe2 {[%clk
00:01:12]} {[%emt 00:00:46]} Qh3 {[%clk 00:09:26]} {[%emt 00:03:14]} 38. Qg2
{[%clk 00:01:11]} {[%emt 00:00:30]} Qh4 {[%clk 00:09:43]} {[%emt 00:00:14]} 39.
Qe2 {[%clk 00:00:59]} {[%emt 00:00:42]} Nf5 {[%clk 00:08:04]} {[%emt 00:02:09]}
40. Qe4 {[%clk 00:00:36]} {[%emt 00:00:53]} Qxe4 {[%clk 00:07:34]} {[%emt
00:01:00]} 41. fxe4 {[%clk 00:01:04]} {[%emt 00:00:02]} Nh4 {[%clk 00:07:56]}
{[%emt 00:00:08]} 42. Rd3 {[%clk 00:29:04]} {[%emt 00:02:29]} Ra4 {[%clk
00:37:58]} {[%emt 00:00:28]} 43. Nb6 {[%clk 00:28:24]} {[%emt 00:01:10]} Rxd6
{[%clk 00:38:19]} {[%emt 00:00:09]} 44. Nxa4 {[%clk 00:28:45]} {[%emt
00:00:10]} 1-0

[Event "Smuk Skak GM Tournament 2021"]
[Site "Skanderborg, Denmark"]
[Date "2021.08.14"]
[Round "1.3"]
[White "Lindgren, Phillip"]
[Black "Brunello, Sabino"]
[Result "0-1"]
[TimeControl "90 minutes + 30 minutes at move 40, 30 secs pr move from move 1"]
[WhiteTitle "IM"]
[BlackTitle "GM"]
[WhiteFideId "1713230"]
[BlackFideId "813613"]
[WhiteElo "2356"]
[BlackElo "2517"]

1. d4 {[%clk 01:30:52]} {[%emt 00:00:06]} Nf6 {[%clk 01:30:12]} {[%emt
00:00:49]} 2. c4 {[%clk 01:30:53]} {[%emt 00:00:29]} e6 {[%clk 01:30:36]}
{[%emt 00:00:07]} 3. Nf3 {[%clk 01:30:52]} {[%emt 00:00:30]} b6 {[%clk
01:30:39]} {[%emt 00:00:28]} 4. g3 {[%clk 01:30:37]} {[%emt 00:00:45]} Ba6
{[%clk 01:30:44]} {[%emt 00:00:25]} 5. b3 {[%clk 01:30:05]} {[%emt 00:01:02]}
Bb7 {[%clk 01:30:54]} {[%emt 00:00:20]} 6. Bg2 {[%clk 01:29:52]} {[%emt
00:00:43]} Bb4+ {[%clk 01:31:17]} {[%emt 00:00:08]} 7. Bd2 {[%clk 01:29:47]}
{[%emt 00:00:34]} a5 {[%clk 01:31:25]} {[%emt 00:00:22]} 8. O-O {[%clk
01:27:10]} {[%emt 00:03:07]} O-O {[%clk 01:30:32]} {[%emt 00:01:23]} 9. Nc3
{[%clk 01:24:19]} {[%emt 00:03:21]} d5 {[%clk 01:28:57]} {[%emt 00:02:05]} 10.
Qc2 {[%clk 01:16:13]} {[%emt 00:08:36]} Nbd7 {[%clk 01:23:31]} {[%emt
00:05:56]} 11. Bf4 {[%clk 01:05:57]} {[%emt 00:10:45]} c5 {[%clk 00:58:16]}
{[%emt 00:25:46]} 12. Nb5 {[%clk 00:51:23]} {[%emt 00:15:04]} cxd4 {[%clk
00:45:30]} {[%emt 00:13:16]} 13. Bc7 {[%clk 00:40:04]} {[%emt 00:11:49]} Qe7
{[%clk 00:43:33]} {[%emt 00:02:28]} 14. Nfxd4 {[%clk 00:36:14]} {[%emt
00:04:19]} Bc5 {[%clk 00:41:23]} {[%emt 00:02:41]} 15. Rfd1 {[%clk 00:29:11]}
{[%emt 00:07:33]} g6 {[%clk 00:41:13]} {[%emt 00:00:40]} 16. a3 {[%clk
00:25:24]} {[%emt 00:04:18]} Rfc8 {[%clk 00:31:42]} {[%emt 00:10:01]} 17. Qb2
{[%clk 00:20:11]} {[%emt 00:05:43]} e5 {[%clk 00:18:05]} {[%emt 00:14:08]} 18.
cxd5 {[%clk 00:10:15]} {[%emt 00:10:25]} Nxd5 {[%clk 00:13:00]} {[%emt
00:05:35]} 19. Nf5 {[%clk 00:06:05]} {[%emt 00:04:39]} gxf5 {[%clk 00:12:11]}
{[%emt 00:01:20]} 20. Bxd5 {[%clk 00:05:51]} {[%emt 00:00:43]} Bxf2+ {[%clk
00:12:26]} {[%emt 00:00:16]} 21. Kg2 {[%clk 00:03:16]} {[%emt 00:03:05]} Bxd5+
{[%clk 00:09:15]} {[%emt 00:03:41]} 22. Rxd5 {[%clk 00:03:33]} {[%emt
00:00:13]} Bd4 {[%clk 00:09:39]} {[%emt 00:00:07]} 23. Qd2 {[%clk 00:03:12]}
{[%emt 00:00:50]} Nf6 {[%clk 00:07:10]} {[%emt 00:02:59]} 24. Qg5+ {[%clk
00:01:40]} {[%emt 00:02:01]} Kh8 {[%clk 00:07:38]} {[%emt 00:00:03]} 25. Rd7
{[%clk 00:01:02]} {[%emt 00:01:08]} Qe6 {[%clk 00:05:37]} {[%emt 00:02:31]} 26.
Rd6 {[%clk 00:01:02]} {[%emt 00:00:30]} Ne4 {[%clk 00:05:14]} {[%emt 00:00:53]}
27. Nxd4 {[%clk 00:00:33]} {[%emt 00:00:59]} Qxd6 {[%clk 00:03:45]} {[%emt
00:01:59]} 28. Bxd6 {[%clk 00:00:35]} {[%emt 00:00:28]} Nxg5 {[%clk 00:04:11]}
{[%emt 00:00:05]} 29. Bxe5+ {[%clk 00:00:49]} {[%emt 00:00:15]} Kg8 {[%clk
00:04:39]} {[%emt 00:00:02]} 30. Rf1 {[%clk 00:00:31]} {[%emt 00:00:47]} Rc5
{[%clk 00:02:17]} {[%emt 00:02:53]} 31. Rxf5 {[%clk 00:00:31]} {[%emt
00:00:30]} h6 {[%clk 00:02:36]} {[%emt 00:00:11]} 32. h4 {[%clk 00:00:32]}
{[%emt 00:00:29]} Re8 {[%clk 00:01:20]} {[%emt 00:01:45]} 33. Bf4 {[%clk
00:00:32]} {[%emt 00:00:31]} Ne6 {[%clk 00:01:10]} {[%emt 00:00:40]} 34. Rxc5
{[%clk 00:00:32]} {[%emt 00:00:30]} Nxf4+ {[%clk 00:01:01]} {[%emt 00:00:39]}
35. gxf4 {[%clk 00:00:42]} {[%emt 00:00:19]} bxc5 {[%clk 00:01:29]} {[%emt
00:00:02]} 36. Nf5 {[%clk 00:00:50]} {[%emt 00:00:22]} Rxe2+ {[%clk 00:01:35]}
{[%emt 00:00:24]} 0-1

[Event "Smuk Skak GM Tournament 2021"]
[Site "Skanderborg, Denmark"]
[Date "2021.08.14"]
[Round "1.4"]
[White "Ochsner, Bjørn Møller"]
[Black "Svane, Frederik"]
[Result "0-1"]
[TimeControl "90 minutes + 30 minutes at move 40, 30 secs pr move from move 1"]
[WhiteTitle "IM"]
[BlackTitle "IM"]
[WhiteFideId "1416928"]
[BlackFideId "12923044"]
[WhiteElo "2506"]
[BlackElo "2438"]

1. d4 {[%clk 01:30:56]} {[%emt 00:00:02]} Nf6 {[%clk 01:30:49]} {[%emt
00:00:11]} 2. c4 {[%clk 01:31:13]} {[%emt 00:00:14]} e6 {[%clk 01:31:11]}
{[%emt 00:00:09]} 3. Nc3 {[%clk 01:31:37]} {[%emt 00:00:06]} Bb4 {[%clk
01:31:24]} {[%emt 00:00:17]} 4. Qc2 {[%clk 01:31:54]} {[%emt 00:00:13]} O-O
{[%clk 01:31:41]} {[%emt 00:00:13]} 5. Nf3 {[%clk 01:32:01]} {[%emt 00:00:22]}
c5 {[%clk 01:29:05]} {[%emt 00:03:06]} 6. dxc5 {[%clk 01:32:15]} {[%emt
00:00:16]} Na6 {[%clk 01:29:27]} {[%emt 00:00:08]} 7. g3 {[%clk 01:32:37]}
{[%emt 00:00:09]} Nxc5 {[%clk 01:29:51]} {[%emt 00:00:06]} 8. Bg2 {[%clk
01:33:01]} {[%emt 00:00:06]} Nfe4 {[%clk 01:29:44]} {[%emt 00:00:37]} 9. O-O
{[%clk 01:29:32]} {[%emt 00:03:59]} Bxc3 {[%clk 01:28:00]} {[%emt 00:02:14]} 10.
bxc3 {[%clk 01:29:52]} {[%emt 00:00:09]} b6 {[%clk 01:27:51]} {[%emt 00:00:39]}
11. Rd1 {[%clk 01:13:29]} {[%emt 00:16:53]} Bb7 {[%clk 01:23:44]} {[%emt
00:04:37]} 12. Bf4 {[%clk 01:12:36]} {[%emt 00:01:22]} Qf6 {[%clk 01:02:47]}
{[%emt 00:21:27]} 13. Rac1 {[%clk 00:59:44]} {[%emt 00:13:23]} Rac8 {[%clk
00:39:13]} {[%emt 00:24:04]} 14. h4 {[%clk 00:44:02]} {[%emt 00:16:12]} h6
{[%clk 00:36:43]} {[%emt 00:03:00]} 15. Ne5 {[%clk 00:40:58]} {[%emt 00:03:34]}
d6 {[%clk 00:34:49]} {[%emt 00:02:26]} 16. Nd3 {[%clk 00:38:55]} {[%emt
00:02:32]} e5 {[%clk 00:31:52]} {[%emt 00:03:26]} 17. Be3 {[%clk 00:39:02]}
{[%emt 00:00:23]} Qe6 {[%clk 00:31:38]} {[%emt 00:00:44]} 18. Nxc5 {[%clk
00:30:47]} {[%emt 00:08:45]} Nxc5 {[%clk 00:32:03]} {[%emt 00:00:05]} 19. Bd5
{[%clk 00:29:45]} {[%emt 00:01:32]} Bxd5 {[%clk 00:30:39]} {[%emt 00:01:55]} 20.
Rxd5 {[%clk 00:30:04]} {[%emt 00:00:10]} Nb7 {[%clk 00:28:59]} {[%emt
00:02:08]} 21. Qd3 {[%clk 00:25:54]} {[%emt 00:04:42]} Rc7 {[%clk 00:22:23]}
{[%emt 00:07:06]} 22. Rd1 {[%clk 00:23:33]} {[%emt 00:02:51]} f5 {[%clk
00:16:55]} {[%emt 00:05:58]} 23. Bc1 {[%clk 00:13:15]} {[%emt 00:10:48]} f4
{[%clk 00:14:36]} {[%emt 00:02:49]} 24. gxf4 {[%clk 00:13:09]} {[%emt
00:00:36]} Qg4+ {[%clk 00:05:24]} {[%emt 00:09:42]} 25. Qg3 {[%clk 00:12:18]}
{[%emt 00:01:21]} Qxe2 {[%clk 00:05:14]} {[%emt 00:00:40]} 26. R5d2 {[%clk
00:06:21]} {[%emt 00:06:27]} exf4 {[%clk 00:03:46]} {[%emt 00:01:58]} 27. Rxe2
{[%clk 00:05:18]} {[%emt 00:01:33]} fxg3 {[%clk 00:04:10]} {[%emt 00:00:06]} 28.
fxg3 {[%clk 00:05:41]} {[%emt 00:00:07]} Rxc4 {[%clk 00:04:30]} {[%emt
00:00:10]} 29. Rd3 {[%clk 00:02:56]} {[%emt 00:03:15]} Nc5 {[%clk 00:04:04]}
{[%emt 00:00:56]} 30. Rxd6 {[%clk 00:03:06]} {[%emt 00:00:20]} Rxc3 {[%clk
00:04:25]} {[%emt 00:00:08]} 31. Bf4 {[%clk 00:03:06]} {[%emt 00:00:29]} Rd3
{[%clk 00:02:46]} {[%emt 00:02:10]} 32. Re7 {[%clk 00:01:24]} {[%emt 00:02:12]}
Rf7 {[%clk 00:02:55]} {[%emt 00:00:21]} 33. Re8+ {[%clk 00:01:00]} {[%emt
00:00:55]} Kh7 {[%clk 00:03:21]} {[%emt 00:00:04]} 34. Kg2 {[%clk 00:00:38]}
{[%emt 00:00:51]} Rxd6 {[%clk 00:02:10]} {[%emt 00:01:42]} 35. Bxd6 {[%clk
00:01:07]} {[%emt 00:00:01]} Nd7 {[%clk 00:02:33]} {[%emt 00:00:06]} 36. Be5
{[%clk 00:00:35]} {[%emt 00:01:02]} Nxe5 {[%clk 00:01:14]} {[%emt 00:01:50]} 37.
Rxe5 {[%clk 00:01:04]} {[%emt 00:00:01]} Kg6 {[%clk 00:01:25]} {[%emt
00:00:18]} 38. Re8 {[%clk 00:00:38]} {[%emt 00:00:57]} Rf5 {[%clk 00:01:26]}
{[%emt 00:00:29]} 39. Re4 {[%clk 00:00:33]} {[%emt 00:00:35]} Kf6 {[%clk
00:01:30]} {[%emt 00:00:26]} 40. g4 {[%clk 00:00:32]} {[%emt 00:00:31]} Re5
{[%clk 00:00:48]} {[%emt 00:01:11]} 41. Rf4+ {[%clk 00:25:37]} {[%emt
00:05:25]} Ke6 {[%clk 00:31:12]} {[%emt 00:00:06]} 42. Kf3 {[%clk 00:16:26]}
{[%emt 00:09:41]} g5 {[%clk 00:26:56]} {[%emt 00:04:46]} 43. hxg5 {[%clk
00:07:19]} {[%emt 00:09:37]} hxg5 {[%clk 00:26:34]} {[%emt 00:00:51]} 44. Rd4
{[%clk 00:06:59]} {[%emt 00:00:50]} Ke7 {[%clk 00:24:35]} {[%emt 00:02:30]} 45.
a4 {[%clk 00:03:21]} {[%emt 00:04:08]} Ke6 {[%clk 00:24:57]} {[%emt 00:00:08]}
46. Rc4 {[%clk 00:02:22]} {[%emt 00:01:28]} Rc5 {[%clk 00:23:48]} {[%emt
00:01:38]} 47. Rd4 {[%clk 00:01:48]} {[%emt 00:01:05]} Ke5 {[%clk 00:21:27]}
{[%emt 00:02:50]} 48. Rb4 {[%clk 00:02:16]} {[%emt 00:00:03]} Kd5 {[%clk
00:21:23]} {[%emt 00:00:34]} 49. Ke3 {[%clk 00:02:32]} {[%emt 00:00:14]} Rc3+
{[%clk 00:21:26]} {[%emt 00:00:27]} 50. Kd2 {[%clk 00:03:00]} {[%emt 00:00:02]}
Rc4 {[%clk 00:21:26]} {[%emt 00:00:30]} 51. Rb5+ {[%clk 00:03:06]} {[%emt
00:00:24]} Rc5 {[%clk 00:21:19]} {[%emt 00:00:37]} 52. Rb4 {[%clk 00:03:30]}
{[%emt 00:00:07]} Kc6 {[%clk 00:15:51]} {[%emt 00:05:57]} 53. Kd3 {[%clk
00:03:28]} {[%emt 00:00:32]} a6 {[%clk 00:15:15]} {[%emt 00:01:06]} 54. Re4
{[%clk 00:03:50]} {[%emt 00:00:08]} Rd5+ {[%clk 00:15:22]} {[%emt 00:00:24]} 55.
Kc3 {[%clk 00:02:48]} {[%emt 00:01:32]} Kd7 {[%clk 00:14:21]} {[%emt 00:01:30]}
56. Kc4 {[%clk 00:02:06]} {[%emt 00:01:13]} Kd6 {[%clk 00:13:59]} {[%emt
00:00:51]} 57. Kc3 {[%clk 00:01:31]} {[%emt 00:01:05]} b5 {[%clk 00:13:06]}
{[%emt 00:01:23]} 58. axb5 {[%clk 00:01:20]} {[%emt 00:00:41]} axb5 {[%clk
00:11:35]} {[%emt 00:02:01]} 59. Re8 {[%clk 00:00:45]} {[%emt 00:01:05]} Rc5+
{[%clk 00:11:00]} {[%emt 00:01:05]} 60. Kd3 {[%clk 00:01:07]} {[%emt 00:00:09]}
Rc4 {[%clk 00:11:07]} {[%emt 00:00:22]} 61. Rb8 {[%clk 00:00:34]} {[%emt
00:01:04]} Kc5 {[%clk 00:11:25]} {[%emt 00:00:12]} 62. Rc8+ {[%clk 00:00:33]}
{[%emt 00:00:32]} Kb4 {[%clk 00:11:46]} {[%emt 00:00:08]} 63. Rg8 {[%clk
00:00:31]} {[%emt 00:00:32]} Rxg4 {[%clk 00:12:10]} {[%emt 00:00:06]} 64. Kd2
{[%clk 00:00:34]} {[%emt 00:00:27]} Kb3 {[%clk 00:12:34]} {[%emt 00:00:05]} 65.
Ke3 {[%clk 00:00:39]} {[%emt 00:00:25]} b4 {[%clk 00:12:57]} {[%emt 00:00:07]}
66. Kf3 {[%clk 00:01:06]} {[%emt 00:00:03]} Rf4 {[%clk 00:13:22]} {[%emt
00:00:05]} 67. Ke3 {[%clk 00:01:31]} {[%emt 00:00:05]} Rg4 {[%clk 00:13:26]}
{[%emt 00:00:26]} 68. Kf3 {[%clk 00:01:59]} {[%emt 00:00:02]} Rd4 {[%clk
00:13:47]} {[%emt 00:00:08]} 69. Rxg5 {[%clk 00:02:24]} {[%emt 00:00:06]} Kc3
{[%clk 00:14:00]} {[%emt 00:00:17]} 70. Ke3 {[%clk 00:02:41]} {[%emt 00:00:13]}
Rd8 {[%clk 00:14:19]} {[%emt 00:00:11]} 0-1